bitfinex/quotes_SOLUSD_20250821
["timestamp","ask_amount","ask_price","bid_price","bid_amount"]
[1755741830086,0.77,189.93,189.84,26.0]
[1755741830315,0.77,189.93,189.92,5.94446778]
[1755741830480,0.77,189.93,189.91,5.94446778]
[1755741830861,0.71,189.92,189.87,26.0]
[1755741831067,0.71,189.91,189.84,26.0]
[1755741831293,0.71,189.92,189.9,5.94446778]
[1755741831515,1.2393074,189.91,189.9,5.94446778]
[1755741831715,1.2393074,189.91,189.89,5.94446778]
[1755741831991,0.71,189.9,189.86,5.94446778]
[1755741832307,1.2393074,189.89,189.82,40.56]
[1755741832466,1.2393074,189.89,189.86,5.94446778]
[1755741832662,0.71,189.88,189.86,5.94446778]
[1755741832872,0.72,189.87,189.86,5.94446778]
[1755741833092,0.72,189.87,189.85,31.94446778]
[1755741833392,0.72,189.87,189.86,5.94446778]
[1755741834092,0.72,189.9,189.86,5.94446778]
[1755741834293,0.5293074,189.89,189.87,5.94446778]
[1755741834790,0.06,189.93,189.85,26.0]
[1755741834791,0.5293074,189.91,189.88,5.94446778]
[1755741834966,0.5893074,189.93,189.9,5.94446778]
[1755741835163,1.3093074,189.93,189.91,5.94446778]
[1755741835395,0.06,189.93,189.92,5.94446778]
[1755741835585,0.06,189.93,189.89,26.0]
[1755741835763,0.78,189.93,189.89,26.0]
[1755741835964,0.06,189.93,189.89,26.0]
[1755741836374,0.06,189.93,189.92,5.94446778]
[1755741838579,0.06,189.93,189.92,47.03446778]
[1755741838785,0.06,189.95,189.94,26.0]
[1755741838988,0.06,189.95,189.94,31.94446778]
[1755741839192,0.06,189.95,189.94,32.61446778]
[1755741839384,0.06,189.97,189.94,38.55893556]
[1755741839697,0.06,189.97,189.96,11.88893556]
[1755741839879,0.72,190.06,189.96,11.88893556]
[1755741840199,0.5293074,190.05,189.97,58.22292461]
[1755741840383,0.72,190.06,189.97,58.22292461]
[1755741840585,0.72,190.06,190.0,26.0]
[1755741840783,0.72,190.06,190.05,5.94446778]
[1755741841095,0.72,190.06,190.03,5.94446778]
[1755741841403,0.5293074,190.05,189.94,0.67]
[1755741841713,1.2493074,190.05,190.0,26.0]
[1755741841881,0.72,190.04,190.01,5.94446778]
[1755741842078,0.72,190.04,189.98,26.0]
[1755741842079,7.19377518,190.03,189.98,26.0]
[1755741842294,0.72,190.02,189.96,5.94446778]
[1755741842596,0.5293074,190.01,189.95,26.0]
[1755741842799,5.94446778,189.99,189.94,5.94446778]
[1755741842995,7.19377518,189.98,189.93,5.94446778]
[1755741843197,7.19377518,189.98,189.9,5.94446778]
[1755741843198,5.94446778,189.95,189.9,5.94446778]
[1755741843388,1.2493074,189.94,189.89,5.94446778]
[1755741843590,0.72,189.93,189.89,5.94446778]
[1755741843888,0.72,189.92,189.89,5.94446778]
[1755741844097,0.72,189.91,189.88,5.94446778]
[1755741844412,0.72,189.91,189.9,26.0]
[1755741844614,0.72,189.91,189.87,5.94446778]
[1755741844902,0.72,189.91,189.8,44.463775]
[1755741844903,6.47377518,189.9,189.84,5.94446778]
[1755741845107,0.72,189.89,189.84,5.94446778]
[1755741845285,1.2493074,189.88,189.84,5.94446778]
[1755741845889,1.2493074,189.88,189.85,5.94446778]
[1755741846297,0.72,189.92,189.87,5.94446778]
[1755741846587,0.5293074,189.94,189.89,26.0]
[1755741847106,0.5293074,189.96,189.93,5.94446778]
[1755741847308,0.5293074,189.96,189.95,5.94446778]
[1755741847478,0.72,189.95,189.91,5.94446778]
[1755741847674,0.5293074,189.94,189.93,5.94446778]
[1755741848102,1.2493074,189.94,189.92,5.94446778]
[1755741848606,0.72,189.98,189.93,5.94446778]
[1755741848904,0.5293074,190.01,189.97,5.94446778]
[1755741849080,1.2493074,190.0,189.98,5.94446778]
[1755741850109,0.72,189.99,189.94,0.03]
[1755741850410,0.72,189.99,189.97,5.94446778]
[1755741850588,0.72,189.99,189.94,0.03]
[1755741850783,0.72,189.99,189.98,5.94446778]
[1755741851009,1.2493074,190.02,189.98,5.94446778]
[1755741851191,0.5293074,190.02,189.98,5.94446778]
[1755741851509,0.72,190.01,189.97,5.94446778]
[1755741851711,0.28432314,190.04,189.94,0.03]
[1755741851712,1.2493074,190.0,189.96,5.94446778]
[1755741851908,1.2493074,190.0,189.98,5.94446778]
[1755741852405,0.72,189.99,189.94,0.03]
[1755741852593,0.5293074,189.98,189.95,5.94446778]
[1755741852792,0.72,189.97,189.95,5.94446778]
[1755741853611,0.5293074,189.99,189.95,5.94446778]
[1755741853784,0.72,189.98,189.95,5.94446778]
[1755741853991,0.5293074,189.97,189.95,5.94446778]
[1755741854615,0.72,189.96,189.94,0.03]
[1755741854921,0.14216157,190.04,189.94,0.03]
[1755741854922,0.5293074,189.95,189.94,0.7]
[1755741855080,0.72,190.03,189.95,0.67]
[1755741855405,5.94446778,190.01,189.95,5.94446778]
[1755741855707,1.2493074,190.0,189.95,5.94446778]
[1755741855902,0.5293074,190.0,189.95,5.94446778]
[1755741856102,6.66446778,189.99,189.94,5.97446778]
[1755741856404,1.2493074,189.98,189.94,5.97446778]
[1755741856597,0.72,189.97,189.94,5.97446778]
[1755741856906,0.5293074,189.96,189.94,5.97446778]
[1755741857111,0.5293074,189.95,189.94,0.03]
[1755741857290,0.72,189.95,189.94,0.03]
[1755741857686,1.2493074,189.95,189.94,0.03]
[1755741858015,0.72,189.95,189.94,0.03]
[1755741858229,7.19377518,189.95,189.94,0.03]
[1755741858783,20.78936919,189.95,189.94,0.03]
[1755741858987,13.59559401,189.94,189.85,5.94446778]
[1755741859189,13.59559401,189.92,189.8,0.7]
[1755741859420,5.94446778,189.87,189.82,5.94446778]
[1755741859610,0.5293074,189.91,189.86,5.94446778]
[1755741859795,6.66446778,189.9,189.84,5.94446778]
[1755741860110,7.19377518,189.89,189.82,26.0]
[1755741860284,7.19377518,189.89,189.8,0.7]
[1755741860285,13.59559401,189.82,189.8,0.03]
[1755741860481,20.35369233,189.81,189.8,0.03]
[1755741860681,0.42648471,189.79,189.71,0.03]
[1755741860918,5.94446778,189.73,189.71,0.03]
[1755741861214,7.19377518,189.72,189.71,0.03]
[1755741861426,1.2493074,189.72,189.71,0.03]
[1755741861625,20.78936919,189.72,189.71,0.03]
[1755741861792,21.07369233,189.72,189.71,0.03]
[1755741862412,21.2158539,189.72,189.71,0.03]
[1755741862891,20.78936919,189.72,189.71,0.03]
[1755741863080,61.14936919,189.72,189.71,0.03]
[1755741863587,0.5293074,189.72,189.71,0.03]
[1755741863789,0.5293074,189.73,189.71,0.03]
[1755741863999,40.38,189.77,189.72,5.94446778]
[1755741864203,0.5293074,189.76,189.74,5.94446778]
[1755741864398,9.50573526,189.78,189.73,8.97642786]
[1755741864604,0.68,189.77,189.73,8.97642786]
[1755741864806,0.5293074,189.76,189.74,8.97642786]
[1755741865031,0.5293074,189.76,189.71,0.03]
[1755741865032,0.5293074,189.76,189.75,8.97642786]
[1755741865215,9.65642786,189.8,189.75,8.97642786]
[1755741865216,0.5293074,189.78,189.75,8.97642786]
[1755741865397,9.50573526,189.78,189.73,8.97642786]
[1755741865603,9.65642786,189.77,189.72,8.97642786]
[1755741865801,40.36,189.81,189.71,0.03]
[1755741865802,1.2093074,189.76,189.71,0.03]
[1755741865990,1.2093074,189.76,189.72,8.97642786]
[1755741866196,0.68,189.75,189.72,8.97642786]
[1755741866505,0.68,189.75,189.72,0.03]
[1755741866506,1.2093074,189.74,189.72,0.03]
[1755741866703,10.18573526,189.74,189.72,0.03]
[1755741866903,9.50573526,189.74,189.72,0.03]
[1755741867101,0.5293074,189.74,189.72,0.03]
[1755741867713,0.5293074,189.74,189.72,9.00642786]
[1755741867923,0.5293074,189.78,189.73,8.97642786]
[1755741868125,0.5293074,189.78,189.76,8.97642786]
[1755741868324,0.5293074,189.78,189.73,0.68]
[1755741868521,0.5293074,189.78,189.76,8.97642786]
[1755741868826,1.2093074,189.78,189.75,8.97642786]
[1755741869003,0.5293074,189.78,189.76,8.97642786]
[1755741869198,0.5293074,189.79,189.76,8.97642786]
[1755741869399,0.68,189.78,189.72,0.03]
[1755741869702,40.28,189.79,189.77,8.97642786]
[1755741869904,40.8093074,189.79,189.77,8.97642786]
[1755741870093,40.8093074,189.79,189.76,8.97642786]
[1755741870297,0.68,189.78,189.74,8.97642786]
[1755741870513,1.2093074,189.77,189.73,8.97642786]
[1755741870709,9.50573526,189.77,189.72,9.00642786]
[1755741870898,40.8493074,189.77,189.74,8.97642786]
[1755741871111,40.8493074,189.77,189.73,8.97642786]
[1755741871308,40.8293074,189.77,189.73,8.97642786]
[1755741871916,40.8093074,189.77,189.75,8.97642786]
[1755741872127,40.8093074,189.77,189.74,8.97642786]
[1755741872530,40.8093074,189.77,189.75,8.97642786]
[1755741873232,0.5293074,189.77,189.75,8.97642786]
[1755741873408,40.28,189.77,189.75,8.97642786]
[1755741873613,0.5293074,189.76,189.75,8.97642786]
[1755741873808,10.18573526,189.76,189.72,0.03]
[1755741874006,9.65642786,189.75,189.72,0.03]
[1755741874233,0.5293074,189.74,189.72,0.03]
[1755741874549,0.5293074,189.75,189.73,8.97642786]
[1755741874713,0.5293074,189.76,189.74,8.97642786]
[1755741875048,40.28,189.77,189.75,8.97642786]
[1755741875253,0.5293074,189.76,189.75,8.97642786]
[1755741875398,0.5293074,189.76,189.72,0.03]
[1755741875399,1.2093074,189.76,189.72,0.03]
[1755741875728,0.68,189.75,189.72,0.03]
[1755741876025,0.5293074,189.74,189.72,0.03]
[1755741876397,0.5293074,189.76,189.72,9.00642786]
[1755741876602,9.65642786,189.75,189.72,0.03]
[1755741876935,0.5293074,189.74,189.72,0.03]
[1755741877108,40.8093074,189.74,189.72,9.00642786]
[1755741877308,0.5293074,189.74,189.72,9.00642786]
[1755741877509,40.8093074,189.74,189.72,9.00642786]
[1755741877711,0.5293074,189.74,189.72,9.00642786]
[1755741877925,0.5293074,189.75,189.72,9.00642786]
[1755741878126,40.8093074,189.75,189.72,9.00642786]
[1755741878733,0.5293074,189.75,189.72,0.03]
[1755741879033,40.3,189.74,189.72,9.00642786]
[1755741879227,0.5293074,189.73,189.72,9.00642786]
[1755741880014,1.2093074,189.73,189.72,0.03]
[1755741880407,10.18573526,189.73,189.72,0.03]
[1755741881518,1.2093074,189.73,189.72,0.03]
[1755741881929,10.18573526,189.73,189.72,0.03]
[1755741882138,50.48573526,189.73,189.72,0.03]
[1755741882323,41.5093074,189.73,189.72,0.03]
[1755741882525,64.36565241,189.73,189.72,0.03]
[1755741883211,64.50781398,189.73,189.72,0.03]
[1755741883925,24.20781398,189.73,189.72,0.03]
[1755741884131,64.48781398,189.73,189.72,0.03]
[1755741885121,14.02207872,189.72,189.71,0.03]
[1755741885436,23.67850658,189.72,189.71,0.03]
[1755741885818,63.97850658,189.72,189.71,0.03]
[1755741886323,60.96040545,189.72,189.71,0.03]
[1755741886841,20.66040545,189.72,189.71,0.03]
[1755741887037,60.96040545,189.72,189.71,0.03]
[1755741888437,60.96040545,189.72,189.7,0.03]
[1755741888741,21.18971285,189.71,189.7,0.03]
[1755741889337,61.48971285,189.71,189.7,0.03]
[1755741890453,14.02207872,189.7,189.68,0.03]
[1755741890757,20.50971285,189.69,189.68,0.03]
[1755741890924,21.18971285,189.69,189.68,0.03]
[1755741891527,14.02207872,189.68,189.65,0.2]
[1755741891720,19.83824388,189.66,189.65,0.2]
[1755741891917,60.13824388,189.66,189.65,0.2]
[1755741892719,60.81824388,189.66,189.65,0.2]
[1755741892920,20.51824388,189.66,189.65,0.2]
[1755741893122,60.13824388,189.66,189.65,0.2]
[1755741893744,60.81824388,189.66,189.65,0.2]
[1755741894154,61.48971285,189.66,189.65,0.2]
[1755741895167,67.44803958,189.66,189.65,0.2]
[1755741895954,0.42648471,189.61,189.58,0.2]
[1755741896154,0.42648471,189.58,189.56,0.03]
[1755741896473,0.14216157,189.55,189.54,0.2]
[1755741896771,20.90538971,189.55,189.54,0.2]
[1755741896942,61.20538971,189.55,189.54,0.2]
[1755741897139,61.48971285,189.55,189.54,0.2]
[1755741897366,14.55138612,189.55,189.54,0.2]
[1755741897565,60.80971285,189.55,189.54,0.2]
[1755741897887,60.66755128,189.55,189.54,0.2]
[1755741898074,0.5293074,189.55,189.54,0.2]
[1755741898243,0.67146897,189.6,189.54,0.89]
[1755741898570,19.55392074,189.55,189.54,0.2]
[1755741898769,60.13824388,189.55,189.54,0.2]
[1755741898947,20.36755128,189.55,189.54,0.2]
[1755741899271,61.48971285,189.55,189.54,0.2]
[1755741900057,20.50971285,189.55,189.54,0.2]
[1755741900359,14.02207872,189.54,189.51,0.2]
[1755741900670,14.02207872,189.54,189.42,0.69]
[1755741900671,0.42648471,189.51,189.42,0.69]
[1755741900870,5.95832673,189.43,189.42,0.69]
[1755741901075,13.59559401,189.42,189.39,0.69]
[1755741901381,40.8293074,189.41,189.4,0.69]
[1755741901949,40.8293074,189.41,189.27,0.03]
[1755741901950,46.78763413,189.41,189.37,0.69]
[1755741902150,5.95832673,189.39,189.37,0.69]
[1755741902480,46.78763413,189.38,189.34,0.69]
[1755741902651,19.55392074,189.36,189.34,0.69]
[1755741902976,6.42760833,189.35,189.34,0.69]
[1755741903175,0.4692816,189.35,189.34,26.0]
[1755741903383,1.1492816,189.46,189.34,31.95832673]
[1755741903597,13.59559401,189.41,189.31,5.95832673]
[1755741903758,40.7892816,189.4,189.35,0.69]
[1755741904093,40.32,189.39,189.35,0.69]
[1755741904386,0.4692816,189.38,189.36,26.69]
[1755741904585,0.4692816,189.38,189.37,0.69]
[1755741904759,0.4692816,189.38,189.37,9.70258145]
[1755741904953,13.87991715,189.42,189.37,9.70258145]
[1755741905159,0.4692816,189.41,189.38,9.70258145]
[1755741905354,40.3,189.4,189.38,9.70258145]
[1755741905599,0.4692816,189.39,189.38,9.01258145]
[1755741905748,40.32,189.39,189.38,9.01258145]
[1755741905954,40.32,189.39,189.37,9.01258145]
[1755741906166,0.4692816,189.38,189.37,0.69]
[1755741906650,9.01258145,189.43,189.37,9.70258145]
[1755741906875,40.7892816,189.42,189.37,0.69]
[1755741907079,22.60817546,189.41,189.37,9.70258145]
[1755741907279,0.4692816,189.4,189.37,9.70258145]
[1755741907985,0.4692816,189.4,189.37,9.01258145]
[1755741908162,0.4692816,189.4,189.38,0.69]
[1755741908967,0.4692816,189.4,189.37,9.01258145]
[1755741909162,40.32,189.39,189.37,9.01258145]
[1755741909361,0.4692816,189.38,189.35,0.69]
[1755741909587,13.59559401,189.37,189.33,9.01258145]
[1755741909879,9.48186305,189.36,189.27,0.03]
[1755741910082,9.48186305,189.36,189.29,0.69]
[1755741910083,9.01258145,189.33,189.29,0.69]
[1755741910259,0.4692816,189.32,189.29,0.69]
[1755741910459,0.4692816,189.32,189.31,35.01258145]
[1755741910770,40.7892816,189.34,189.31,35.70258145]
[1755741910985,40.7892816,189.34,189.27,0.03]
[1755741911278,9.01258145,189.31,189.27,0.03]
[1755741911481,0.4692816,189.3,189.27,0.03]
[1755741911783,49.33258145,189.29,189.27,0.03]
[1755741912091,23.50394177,189.28,189.27,0.03]
[1755741912385,24.18394177,189.28,189.27,0.03]
[1755741912598,14.06487561,189.28,189.27,0.03]
[1755741912760,63.82394177,189.28,189.27,0.03]
[1755741913081,63.6817802,189.28,189.27,0.03]
[1755741913493,54.38487561,189.28,189.27,0.03]
[1755741914276,54.38487561,189.28,189.27,9.04258145]
[1755741914482,55.49136032,189.28,189.27,0.03]
[1755741914661,55.49136032,189.28,189.27,9.04258145]
[1755741915465,54.66919875,189.28,189.27,9.04258145]
[1755741916079,14.34919875,189.28,189.27,9.04258145]
[1755741916565,54.66919875,189.28,189.27,9.04258145]
[1755741917457,55.49136032,189.28,189.27,9.04258145]
[1755741918657,55.49136032,189.28,189.27,0.03]
[1755741918960,55.49136032,189.28,189.27,9.04258145]
[1755741919673,15.17136032,189.28,189.27,9.04258145]
[1755741919878,54.81136032,189.28,189.27,9.04258145]
[1755741920374,54.81136032,189.28,189.27,0.03]
[1755741920578,14.34919875,189.28,189.27,9.04258145]
[1755741920894,54.68919875,189.28,189.27,9.04258145]
[1755741921261,55.51136032,189.28,189.27,9.04258145]
[1755741921785,55.51136032,189.28,189.27,0.03]
[1755741922371,14.02207872,189.27,189.21,0.03]
[1755741922673,0.42648471,189.24,189.21,9.04258145]
[1755741922869,13.73775558,189.22,189.21,9.04258145]
[1755741923176,14.39775558,189.22,189.21,9.04258145]
[1755741923368,14.68207872,189.22,189.21,9.04258145]
[1755741923568,14.68207872,189.22,189.21,0.03]
[1755741923886,14.68207872,189.22,189.21,9.04258145]
[1755741924075,14.68207872,189.22,189.21,0.03]
[1755741924272,14.68207872,189.22,189.21,9.04258145]
[1755741924756,13.87991715,189.22,189.21,9.04258145]
[1755741924957,53.91559401,189.22,189.21,9.04258145]
[1755741925455,54.34207872,189.22,189.21,9.04258145]
[1755741925657,55.41133453,189.22,189.21,0.03]
[1755741925857,55.41133453,189.22,189.21,9.04258145]
[1755741926276,54.75133453,189.22,189.21,6.01212059]
[1755741926503,10.0,189.36,189.21,6.68212059]
[1755741926706,0.66,189.33,189.22,0.63]
[1755741926894,40.34,189.32,189.22,0.63]
[1755741927188,26.0,189.35,189.22,0.63]
[1755741927189,14.25559401,189.31,189.22,0.63]
[1755741927489,13.59559401,189.29,189.22,0.63]
[1755741927683,13.59559401,189.29,189.23,26.0]
[1755741927906,13.59559401,189.29,189.28,5.98212059]
[1755741928069,53.93559401,189.29,189.28,5.98212059]
[1755741928269,54.21991715,189.29,189.28,18.03519994]
[1755741928683,54.21991715,189.29,189.21,26.03]
[1755741928684,13.59559401,189.28,189.21,26.03]
[1755741928879,0.42648471,189.25,189.21,0.03]
[1755741929092,0.14216157,189.22,189.21,0.03]
[1755741929279,40.46216157,189.22,189.21,0.03]
[1755741929482,40.74648471,189.22,189.21,0.03]
[1755741929681,40.32,189.23,189.21,0.03]
[1755741929876,40.32,189.23,189.22,9.01759997]
[1755741930075,53.91559401,189.23,189.22,9.01759997]
[1755741931200,0.14216157,189.29,189.22,9.64759997]
[1755741931371,0.14216157,189.29,189.22,0.63]
[1755741931372,0.14216157,189.26,189.22,0.63]
[1755741931567,13.59559401,189.27,189.21,0.03]
[1755741931777,26.0,189.34,189.21,0.03]
[1755741931778,0.66,189.34,189.22,0.63]
[1755741931983,40.32,189.33,189.22,0.63]
[1755741932290,0.06,189.39,189.25,26.0]
[1755741932291,0.72,189.39,189.25,26.0]
[1755741932489,0.72,189.39,189.38,9.01759997]
[1755741932702,55.06207872,189.39,189.38,9.01759997]
[1755741933078,54.63559401,189.39,189.38,9.01759997]
[1755741933277,55.06207872,189.39,189.38,9.01759997]
[1755741933711,55.06207872,189.39,189.28,35.01759997]
[1755741933712,14.02207872,189.38,189.35,9.01759997]
[1755741933908,0.06,189.39,189.37,9.01759997]
[1755741934108,40.32,189.38,189.37,9.01759997]
[1755741934418,53.91559401,189.38,189.37,9.01759997]
[1755741935208,54.34207872,189.38,189.37,9.01759997]
[1755741935778,14.02207872,189.37,189.24,0.63]
[1755741936103,0.42648471,189.34,189.24,0.63]
[1755741936308,13.87991715,189.32,189.3,9.01759997]
[1755741936504,13.87991715,189.32,189.31,9.01759997]
[1755741936878,14.53991715,189.32,189.3,9.01759997]
[1755741937510,13.87991715,189.32,189.3,9.01759997]
[1755741937716,0.72,189.39,189.31,9.01759997]
[1755741937941,0.42648471,189.37,189.36,9.01759997]
[1755741938213,53.91559401,189.38,189.36,9.01759997]
[1755741938214,13.59559401,189.38,189.36,9.01759997]
[1755741938415,0.06,189.39,189.37,9.01759997]
[1755741938617,0.06,189.39,189.38,9.01759997]
[1755741938912,13.65559401,189.39,189.38,9.01759997]
[1755741939097,54.23991715,189.39,189.38,9.01759997]
[1755741939314,0.34432314,189.39,189.38,9.01759997]
[1755741939509,53.95559401,189.39,189.38,9.01759997]
[1755741939708,13.59559401,189.38,189.35,9.01759997]
[1755741939914,13.87991715,189.36,189.35,9.01759997]
[1755741940097,0.28432314,189.35,189.28,0.63]
[1755741940297,40.3,189.34,189.28,26.63]
[1755741940524,53.89559401,189.34,189.33,9.01759997]
[1755741941226,13.73775558,189.38,189.33,9.64759997]
[1755741941410,13.59559401,189.36,189.3,0.63]
[1755741941598,0.28432314,189.35,189.3,0.63]
[1755741941799,0.28432314,189.35,189.28,35.01759997]
[1755741942501,0.28432314,189.35,189.34,9.01759997]
[1755741942704,0.28432314,189.35,189.28,35.01759997]
[1755741942905,0.28432314,189.35,189.34,9.01759997]
[1755741943130,13.59559401,189.36,189.34,9.01759997]
[1755741943321,0.06,189.39,189.35,9.01759997]
[1755741943520,0.06,189.39,189.38,9.01759997]
[1755741943703,55.04207872,189.39,189.38,9.01759997]
[1755741943909,54.09775558,189.39,189.38,9.01759997]
[1755741944103,54.23991715,189.39,189.38,9.01759997]
[1755741944313,54.38207872,189.39,189.38,9.01759997]
[1755741944633,13.87991715,189.38,189.33,9.01759997]
[1755741944814,22.89751712,189.38,189.33,9.64759997]
[1755741945016,13.87991715,189.38,189.34,9.01759997]
[1755741945702,0.06,189.39,189.36,9.01759997]
[1755741945904,40.3,189.38,189.36,9.64759997]
[1755741946534,40.3,189.38,189.36,9.01759997]
[1755741947322,40.3,189.38,189.28,9.01759997]
[1755741947323,0.28432314,189.36,189.29,9.64759997]
[1755741947635,13.59559401,189.35,189.31,9.01759997]
[1755741947835,40.28,189.34,189.31,9.64759997]
[1755741948342,0.14216157,189.33,189.29,9.01759997]
[1755741948553,9.01759997,189.3,189.22,0.03]
[1755741948703,9.01759997,189.25,189.22,0.03]
[1755741949404,62.89319398,189.25,189.22,0.03]
[1755741950010,53.87559401,189.25,189.22,0.03]
[1755741950465,62.89319398,189.25,189.22,0.03]
[1755741950729,9.01759997,189.24,189.22,0.03]
[1755741951544,9.01759997,189.24,189.22,26.03]
[1755741951911,10.10408468,189.23,189.22,0.03]
[1755741952547,10.10408468,189.23,189.21,0.03]
[1755741952726,63.97967869,189.22,189.21,0.03]
[1755741953322,23.69967869,189.22,189.21,0.03]
[1755741953518,13.87991715,189.22,189.21,0.03]
[1755741953733,63.31967869,189.22,189.21,0.03]
[1755741953913,54.30207872,189.22,189.21,0.03]
[1755741954115,63.97967869,189.22,189.21,0.03]
[1755741954443,13.59559401,189.19,189.18,0.03]
[1755741954610,0.42648471,189.18,189.17,0.03]
[1755741954812,14.02207872,189.17,189.14,0.03]
[1755741955038,23.69967869,189.17,189.14,0.03]
[1755741955949,54.30207872,189.17,189.14,0.03]
[1755741956146,63.31967869,189.17,189.14,0.03]
[1755741956450,53.87559401,189.17,189.14,0.03]
[1755741956746,54.30207872,189.17,189.14,0.03]
[1755741957549,63.97967869,189.17,189.14,0.03]
[1755741958345,63.99967869,189.17,189.14,0.03]
[1755741961623,63.99967869,189.17,189.16,4.385]
[1755741962024,73.01727866,189.17,189.16,4.1008]
[1755741962223,13.59559401,189.15,189.14,0.03]
[1755741962424,72.35727866,189.15,189.14,0.03]
[1755741962633,83.01727866,189.15,189.14,0.03]
[1755741963227,0.42648471,189.1,189.0,0.65]
[1755741963436,0.66,189.11,189.09,9.01759997]
[1755741963752,54.98207872,189.1,189.09,9.01759997]
[1755741963938,0.42648471,189.1,189.09,9.01759997]
[1755741964127,54.32207872,189.1,189.09,9.01759997]
[1755741964821,26.66,189.16,189.09,9.01759997]
[1755741965020,26.66,189.16,189.03,0.65]
[1755741965021,0.66,189.15,189.03,0.65]
[1755741965220,13.59559401,189.14,189.13,9.01759997]
[1755741965456,14.39775558,189.14,189.13,9.01759997]
[1755741965632,0.14216157,189.13,189.12,9.01759997]
[1755741965837,54.69775558,189.13,189.06,0.65]
[1755741966154,54.69775558,189.13,189.0,0.65]
[1755741966155,0.14216157,189.08,189.0,0.65]
[1755741966454,40.3,189.07,189.0,0.65]
[1755741966763,40.3,189.06,189.0,0.65]
[1755741967251,40.3,189.05,189.0,0.65]
[1755741967560,13.59559401,189.16,189.04,9.01759997]
[1755741967854,40.3,189.15,189.05,26.65]
[1755741968258,40.3,189.15,189.06,0.65]
[1755741968440,40.96,189.15,189.06,0.65]
[1755741968748,0.28432314,189.14,189.06,0.65]
[1755741968930,0.28432314,189.14,189.13,9.01759997]
[1755741969251,26.28432314,189.14,189.13,9.01759997]
[1755741969448,66.58432314,189.14,189.13,9.01759997]
[1755741969653,67.24432314,189.14,189.13,9.01759997]
[1755741970458,0.28432314,189.12,189.05,26.0]
[1755741970751,14.02207872,189.1,189.0,0.65]
[1755741971051,14.68207872,189.1,189.0,0.65]
[1755741971624,14.68207872,189.1,189.09,9.01759997]
[1755741972445,14.68207872,189.1,189.02,9.66759997]
[1755741972853,14.68207872,189.1,189.09,9.01759997]
[1755741973220,14.02207872,189.1,189.09,9.01759997]
[1755741973427,14.68207872,189.1,189.09,9.01759997]
[1755741974263,14.68207872,189.1,189.05,0.03]
[1755741974421,0.66,189.09,189.08,5.99213634]
[1755741974626,14.02207872,189.08,189.05,0.03]
[1755741974843,14.68207872,189.09,189.05,0.03]
[1755741974844,54.32207872,189.07,189.06,5.99213634]
[1755741975039,14.02207872,189.06,189.05,0.03]
[1755741975329,14.68207872,189.06,189.05,0.03]
[1755741975544,14.02207872,189.06,189.05,0.03]
[1755741975735,0.66,189.12,189.05,0.03]
[1755741975940,53.89559401,189.11,189.05,0.68]
[1755741976137,53.89559401,189.11,189.1,5.99213634]
[1755741976324,54.69775558,189.11,189.1,5.99213634]
[1755741976524,0.14216157,189.1,189.05,0.03]
[1755741976727,0.42648471,189.1,189.05,0.03]
[1755741976932,0.42648471,189.1,189.07,5.99213634]
[1755741977153,0.42648471,189.1,189.08,5.99213634]
[1755741977355,14.02207872,189.08,189.05,0.03]
[1755741977561,40.3,189.07,189.05,0.03]
[1755741978561,54.32207872,189.07,189.06,5.99213634]
[1755741979957,14.02207872,189.06,189.05,0.03]
[1755741980258,14.68207872,189.06,189.05,0.03]
[1755741980634,14.68207872,189.06,189.05,6.02213634]
[1755741981560,0.66,189.12,189.05,6.02213634]
[1755741981863,0.28432314,189.1,189.05,0.03]
[1755741982354,0.66,189.09,189.05,0.03]
[1755741982560,13.87991715,189.07,189.05,0.03]
[1755741982741,13.87991715,189.07,189.06,5.99213634]
[1755741982946,14.02207872,189.07,189.06,5.99213634]
[1755741983634,40.3,189.08,189.06,6.66213634]
[1755741983840,13.59559401,189.13,189.07,5.99213634]
[1755741984038,53.89559401,189.12,189.08,0.67]